bitfinex/quotes_ETHUSD_20250529
["timestamp","ask_amount","ask_price","bid_price","bid_amount"]
[1748513455831,5.25573424,2727.2,2726.6,3.66756932]
[1748513456037,7.52467614,2727.3,2726.4,10.0]
[1748513456038,1.5497,2726.9,2726.4,3.66774234]
[1748513456248,1.5497,2726.9,2726.5,3.66769939]
[1748513456462,1.5497,2726.9,2726.4,10.0]
[1748513456673,1.5497,2726.9,2726.5,3.66763583]
[1748513457617,1.5497,2726.9,2726.5,3.66766652]
[1748513458028,5.4067,2726.9,2726.2,10.0]
[1748513458324,5.4067,2726.9,2726.6,3.66756642]
[1748513458521,5.4067,2726.9,2726.5,3.66763622]
[1748513459052,5.4067,2726.9,2726.4,13.66782387]
[1748513459227,5.4067,2726.9,2726.5,3.66757419]
[1748513459549,5.4067,2726.9,2726.6,3.66754494]
[1748513459855,5.4067,2726.9,2726.5,3.66766651]
[1748513460152,5.4067,2726.9,2726.4,13.66777419]
[1748513460355,5.4067,2726.9,2726.5,3.66769069]
[1748513460517,5.4067,2726.9,2726.4,13.66777581]
[1748513460861,5.4067,2726.9,2726.5,3.66768477]
[1748513461147,5.4067,2726.9,2726.4,10.0]
[1748513461348,5.4067,2726.9,2726.4,13.66776316]
[1748513461553,9.9812995,2726.9,2726.4,10.0]
[1748513461731,3.6673166,2726.8,2726.2,3.66807304]
[1748513461929,3.6673166,2726.8,2726.3,3.66796768]
[1748513462255,6.31407462,2726.9,2725.5,11.2274]
[1748513462256,1.6353,2726.5,2725.5,11.2274]
[1748513462556,1.6353,2726.0,2725.5,3.66897288]
[1748513462754,1.6353,2726.0,2725.6,3.66883093]
[1748513463058,1.6353,2726.0,2725.6,3.66889464]
[1748513463228,1.6353,2726.0,2725.7,3.6687691]
[1748513463430,1.6353,2726.0,2725.8,3.66859665]
[1748513463627,1.6353,2726.0,2725.4,8.0]
[1748513463860,1.6353,2726.0,2725.6,3.66882888]
[1748513464330,1.6353,2726.0,2725.5,1.53381791]
[1748513464851,1.6353,2726.0,2725.5,5.20274703]
[1748513465061,1.6353,2726.0,2725.6,3.668916]
[1748513465351,1.6353,2726.0,2725.5,5.20276522]
[1748513465517,1.6353,2726.0,2725.6,3.66889734]
[1748513465717,1.6353,2726.0,2725.7,3.66877536]
[1748513466147,1.6353,2726.0,2725.6,5.35604034]
[1748513466918,1.6353,2726.0,2725.7,3.66869394]
[1748513467119,3.857,2726.1,2725.8,3.66857604]
[1748513467625,2.6716,2726.2,2725.9,3.66848508]
[1748513467926,5.4477,2726.7,2725.9,0.73372627]
[1748513468123,5.4477,2726.7,2726.0,3.66828309]
[1748513468124,3.66757913,2726.6,2726.0,3.66828309]
[1748513468537,3.66757913,2726.6,2725.9,0.73372627]
[1748513468538,1.5907,2726.7,2725.9,0.73372627]
[1748513468740,3.857,2726.6,2725.9,14.819073]
[1748513468941,3.857,2726.6,2726.3,3.66789733]
[1748513469625,3.857,2726.6,2725.8,6.73183094]
[1748513469626,1.5907,2726.7,2726.4,3.66783862]
[1748513470267,1.5907,2726.7,2726.3,3.66795691]
[1748513470434,5.3719,2726.9,2726.4,3.66777305]
[1748513470986,5.3719,2726.9,2726.1,1.8342546]
[1748513470987,3.6673691,2726.8,2726.1,3.04785867]
[1748513471163,5.3719,2726.9,2726.1,3.66813308]
[1748513471164,9.03907847,2726.9,2726.1,3.66813308]
[1748513471465,9.03907847,2726.9,2726.0,5.50276944]
[1748513471466,3.66747798,2726.7,2726.2,3.66810007]
[1748513471827,3.66737344,2726.8,2726.2,3.66810007]
[1748513472064,6.37970785,2726.9,2726.0,1.8344221]
[1748513472232,1.5715,2726.5,2726.1,3.66823509]
[1748513472755,1.5715,2726.5,2725.9,3.66841013]
[1748513472964,1.5715,2726.5,2726.1,3.66817461]
[1748513474363,1.5715,2726.5,2726.0,14.03514814]
[1748513474569,5.23931115,2726.5,2726.0,0.36684101]
[1748513474775,5.23931115,2726.5,2726.0,3.6683477]
[1748513474983,9.09531115,2726.5,2726.0,3.6683477]
[1748513475275,5.4275,2726.5,2726.0,3.6683477]
[1748513475664,9.09526016,2726.5,2726.0,3.66831359]
[1748513476138,5.4275,2726.5,2726.0,3.66831359]
[1748513476338,5.4275,2726.5,2725.9,10.0]
[1748513476339,5.4275,2726.5,2726.1,3.66824128]
[1748513476533,5.4275,2726.5,2726.1,1.36682413]
[1748513476763,5.4275,2726.5,2726.1,3.66817147]
[1748513476964,5.4275,2726.5,2726.0,3.6683143]
[1748513477693,5.4275,2726.5,2726.1,3.66824384]
[1748513478193,5.4275,2726.5,2726.0,3.66830866]
[1748513479449,5.4275,2726.5,2726.1,3.66821469]
[1748513479666,1.5715,2726.5,2726.3,3.6678784]
[1748513479867,5.20290803,2726.8,2726.3,3.66791684]
[1748513480070,9.05790803,2726.8,2726.3,3.66791684]
[1748513481477,5.3906,2726.8,2726.3,3.66791684]
[1748513481782,1.5356,2726.8,2726.3,3.66790941]
[1748513482265,5.20292258,2726.8,2726.2,3.66804133]
[1748513482782,3.66745535,2726.7,2726.2,3.66804133]
[1748513484587,5.20295062,2726.8,2726.2,13.66804133]
[1748513484781,1.5356,2726.8,2726.3,3.66788381]
[1748513484978,1.5356,2726.8,2726.4,3.66779626]
[1748513485366,1.5356,2726.8,2726.3,3.66789139]
[1748513485877,5.20291254,2726.8,2726.3,3.66789139]
[1748513488083,1.5356,2726.8,2726.4,3.66783271]
[1748513488281,1.5356,2726.8,2726.3,3.66787921]
[1748513488497,1.6227,2727.0,2726.4,13.059804]
[1748513488681,8.28843824,2727.8,2726.8,3.66730179]
[1748513488682,5.28941226,2727.3,2726.8,3.66730179]
[1748513490004,5.28941226,2727.3,2726.6,3.66748568]
[1748513490005,1.6227,2727.3,2726.6,10.0]
[1748513490160,1.6227,2727.3,2726.9,3.66706782]
[1748513491583,5.28936039,2727.3,2726.5,10.0]
[1748513491902,3.66678719,2727.2,2726.7,13.66742177]
[1748513492100,3.66678719,2727.2,2726.4,8.0]
[1748513492101,5.33246493,2727.2,2726.4,8.0]
[1748513492274,3.66696504,2727.1,2726.5,3.66770584]
[1748513492480,3.66725454,2726.9,2726.5,8.0]
[1748513492677,3.66702214,2727.1,2726.5,9.8677075]
[1748513492863,3.66702214,2727.1,2726.2,7.5210155]
[1748513492864,1.5666,2726.7,2726.2,8.0]
[1748513493068,1.5666,2726.7,2726.3,1.46317649]
[1748513493401,5.23408137,2726.7,2726.3,1.46317649]
[1748513493561,1.5666,2726.7,2726.3,1.46317649]
[1748513493764,1.5666,2726.7,2726.4,8.0]
[1748513494101,1.5666,2726.7,2726.4,3.66782648]
[1748513495167,1.5666,2726.7,2726.3,12.9810394]
[1748513495368,1.5666,2726.7,2726.4,1.4639937]
[1748513497168,5.23405407,2726.7,2726.4,1.4639937]
[1748513497365,5.23411046,2726.7,2726.4,1.4639937]
[1748513497565,5.23411046,2726.7,2726.1,11.66817771]
[1748513497772,5.23411046,2726.7,2726.3,10.0]
[1748513498008,1.5666,2726.7,2726.4,1.46444466]
[1748513498194,5.23413052,2726.7,2726.0,3.66836468]
[1748513498518,3.66767318,2726.6,2726.1,1.46484065]
[1748513498679,3.66775551,2726.5,2726.1,1.46484065]
[1748513498879,3.66762708,2726.6,2726.1,1.46484065]
[1748513499671,3.66762708,2726.6,2726.1,15.13308262]
[1748513499873,3.66762708,2726.6,2726.1,5.54840034]
[1748513500070,3.66762708,2726.6,2726.1,3.66824197]
[1748513500305,5.23409735,2726.7,2726.1,3.66824197]
[1748513501705,1.5666,2726.7,2726.3,3.66792871]
[1748513501903,3.852,2726.6,2725.9,10.0]
[1748513502103,3.66779941,2726.5,2726.0,1.46592147]
[1748513502309,3.66779941,2726.5,2726.0,5.13426502]
[1748513502507,3.66779941,2726.5,2726.1,1.46592147]
[1748513502669,3.66779941,2726.5,2725.6,8.0]
[1748513502670,0.75197994,2726.4,2725.6,8.0]
[1748513502871,0.75197994,2726.4,2725.7,1.46641486]
[1748513502872,3.66846333,2726.0,2725.7,1.46641486]
[1748513503170,3.66810945,2726.2,2725.4,8.0]
[1748513503171,1.5723,2725.9,2725.8,1.46641486]
[1748513503497,1.5723,2725.9,2725.7,1.46641486]
[1748513504065,3.852,2726.2,2725.7,1.46641486]
[1748513504066,5.4233,2726.2,2725.8,13.13496308]
[1748513504297,5.4233,2726.2,2725.9,1.46641486]
[1748513504682,9.09141214,2726.2,2725.9,1.46641486]
[1748513505333,1.5723,2726.2,2725.9,1.46641486]
[1748513505508,5.4233,2726.2,2725.4,11.6691601]
[1748513505690,5.4233,2726.2,2725.7,8.0]
[1748513505891,5.4233,2726.2,2725.8,5.13507865]
[1748513506195,5.4233,2726.2,2725.9,1.46654972]
[1748513506396,9.09148455,2726.2,2725.9,1.46654972]
[1748513506598,5.4233,2726.2,2725.7,11.6687457]
[1748513506817,9.09147458,2726.2,2725.8,1.46663604]
[1748513507639,3.667931,2726.4,2725.8,1.46663604]
[1748513507640,1.5419,2726.4,2725.8,5.13523603]
[1748513507793,1.5419,2726.4,2725.9,1.46663604]
[1748513508000,1.036,2726.5,2726.0,3.66837857]
[1748513508001,2.5779,2726.5,2726.0,3.66837857]
[1748513508304,2.5779,2726.5,2726.1,4.54856843]
[1748513508607,1.5419,2726.5,2726.3,3.66795935]
[1748513508940,3.66784037,2726.4,2726.1,0.88034858]
[1748513509165,5.20741192,2726.5,2725.8,11.66858719]
[1748513509305,5.20741192,2726.5,2725.9,1.46664922]
[1748513509493,1.5397,2726.5,2726.0,1.46664761]
[1748513509694,5.20742213,2726.5,2725.9,3.6683808]
[1748513509899,5.20742213,2726.5,2726.0,1.46679817]
[1748513510305,3.66785211,2726.4,2726.0,1.46679817]
[1748513511697,5.20741072,2726.5,2726.0,1.46679817]
[1748513511894,3.66791062,2726.4,2726.0,1.46679817]
[1748513512329,3.66791062,2726.4,2726.1,1.46679817]
[1748513512541,3.66791062,2726.4,2725.8,11.6686075]
[1748513512718,3.66791062,2726.4,2725.9,1.46753482]
[1748513512926,5.20747223,2726.5,2725.9,3.66848792]
[1748513513147,3.66807174,2726.3,2726.0,1.46772023]
[1748513513372,3.851,2726.6,2726.0,1.46772023]
[1748513513373,3.66824401,2726.1,2726.0,1.46772023]
[1748513513572,3.66824401,2726.1,2725.6,3.66886737]
[1748513513573,0.32953156,2726.1,2725.6,3.66886737]
[1748513513772,0.32953156,2726.1,2725.5,10.0]
[1748513514063,0.32953156,2726.1,2725.7,3.66869651]
[1748513514244,0.32953156,2726.1,2725.6,3.66891002]
[1748513514415,0.32953156,2726.1,2725.8,3.66858171]
[1748513514912,3.66760622,2726.6,2725.7,1.2273]
[1748513515114,1.036,2726.7,2726.1,3.66813227]
[1748513515451,3.66763847,2726.6,2725.9,3.66846441]
[1748513515637,4.70348853,2726.7,2726.1,3.66818901]
[1748513515837,4.70348853,2726.7,2726.1,3.66824401]
[1748513516016,3.85,2726.6,2726.2,3.66801401]
[1748513516226,1.85,2726.6,2726.2,3.66801401]
[1748513516421,2.6565,2726.7,2726.2,3.66810945]
[1748513516622,3.66757418,2726.6,2726.1,3.66816688]
[1748513517034,6.32399475,2726.7,2726.1,3.66816688]
[1748513517324,6.32399475,2726.7,2726.0,11.6683687]
[1748513517325,2.6565,2726.7,2726.2,3.66807335]
[1748513517526,6.32394135,2726.7,2726.2,3.66807335]
[1748513517828,6.32394952,2726.7,2726.2,3.66807335]
[1748513518050,2.6565,2726.7,2726.2,1.53364421]
[1748513518257,2.6565,2726.7,2726.2,5.20172753]
[1748513518436,2.6565,2726.7,2726.3,3.66792825]
[1748513520839,2.6565,2726.7,2726.3,3.66786368]
[1748513521145,2.6565,2726.7,2726.4,3.66783641]
[1748513521146,1.036,2726.7,2726.4,3.66783641]
[1748513521348,3.66722606,2726.9,2726.5,3.66763449]
[1748513521349,1.5279,2726.9,2726.5,3.66763449]
[1748513521571,7.915,2727.4,2726.9,10.0]
[1748513521572,1.5279,2727.4,2726.9,10.0]
[1748513521737,1.5279,2727.8,2727.4,3.66642705]
[1748513521937,1.5279,2727.8,2727.4,3.66649108]
[1748513522170,8.28850382,2728.6,2727.6,1.2273]
[1748513522171,1.541,2728.3,2727.6,1.2273]
[1748513522365,1.541,2728.3,2727.8,13.66595791]
[1748513522546,1.541,2728.3,2727.8,3.66595791]
[1748513523270,1.541,2728.3,2727.7,2.762842]
[1748513523463,3.66564352,2728.1,2727.7,2.762842]
[1748513524191,3.66557034,2728.1,2727.7,2.762842]
[1748513524881,3.66557034,2728.1,2727.7,2.24117]
[1748513525414,5.20638972,2728.3,2727.7,2.24117]
[1748513525415,3.6654648,2728.2,2727.7,5.90725022]
[1748513525551,3.6654648,2728.2,2727.7,2.24117]
[1748513525760,3.66542959,2728.2,2727.7,2.24117]
[1748513525956,1.541,2728.3,2727.7,2.24117]
[1748513526227,5.20630257,2728.3,2727.7,2.24117]
[1748513526527,3.66557315,2728.1,2727.7,2.24117]
[1748513527271,3.66548501,2728.2,2727.6,4.89351986]
[1748513527521,1.541,2728.3,2727.6,6.74951888]
[1748513527688,3.66546909,2728.2,2727.6,6.74951888]
[1748513528017,3.66546909,2728.2,2727.8,10.0]
[1748513528174,3.66546909,2728.2,2727.7,13.627826]
[1748513528379,1.541,2728.3,2727.8,10.0]
[1748513528631,1.541,2728.3,2727.8,3.66595791]
[1748513528785,1.541,2728.3,2727.8,4.70749184]
[1748513529410,1.541,2728.3,2727.8,3.66595791]
[1748513529926,1.541,2728.3,2727.8,13.66595791]
[1748513530219,1.541,2728.3,2727.8,10.82703891]
[1748513530598,1.541,2728.3,2727.8,9.43902091]
[1748513531125,5.20629042,2728.3,2727.8,7.91092091]
[1748513531341,1.541,2728.3,2727.8,8.86872207]
[1748513532321,1.036,2728.6,2727.8,16.86872207]
[1748513532619,3.66479722,2728.7,2727.8,16.86872207]
[1748513532620,1.5762,2728.7,2727.8,18.09602207]
[1748513532821,5.24097093,2728.7,2727.8,18.09602207]
[1748513533644,5.24097093,2728.7,2728.1,3.66545526]
[1748513534509,1.5762,2728.7,2728.2,3.66531137]
[1748513534847,5.24095823,2728.7,2728.2,1.73307666]
[1748513535006,5.24095823,2728.7,2728.1,3.6654588]
[1748513535627,5.24097279,2728.7,2728.1,3.66551263]
[1748513535837,1.5762,2728.7,2728.2,3.66540842]
[1748513536041,1.5762,2728.7,2728.2,10.0]
[1748513536345,5.24098829,2728.7,2728.2,3.66541822]
[1748513536951,1.5762,2728.7,2728.0,13.66564296]
[1748513537148,1.5762,2728.7,2728.2,13.66535428]
[1748513537303,1.5762,2728.7,2728.1,1.7511643]
[1748513537509,5.24095631,2728.7,2728.2,3.66535032]
[1748513537809,1.5762,2728.7,2728.2,3.66535032]
[1748513538035,1.5762,2728.7,2728.2,19.884684]
[1748513538233,1.5762,2728.7,2728.4,13.66508815]
[1748513538436,1.5762,2728.7,2728.4,3.66508815]
[1748513539053,1.5762,2728.7,2728.3,10.0]
[1748513539348,1.5762,2728.7,2728.3,13.66525993]
[1748513539656,1.5762,2728.7,2728.0,1.2273]
[1748513539657,3.66524955,2728.4,2728.0,1.2273]
[1748513539868,3.66524955,2728.4,2727.7,3.66602446]
[1748513539869,3.6655117,2728.2,2727.7,3.66602446]
[1748513540148,1.5058,2728.3,2727.8,3.66595058]
[1748513540149,5.17112773,2728.3,2727.8,3.66595058]
[1748513540325,5.17112773,2728.3,2727.9,8.0]
[1748513540840,1.5058,2728.3,2727.9,8.0]
[1748513542567,5.17110059,2728.3,2727.9,8.0]
[1748513542752,1.5058,2728.3,2727.9,11.66572504]
[1748513542942,1.5058,2728.3,2727.9,8.0]
[1748513543145,1.5058,2728.3,2727.9,3.66581792]
[1748513543529,1.5058,2728.3,2727.9,11.66573806]
[1748513543741,1.5058,2728.3,2727.9,8.0]
[1748513543941,3.66548746,2728.2,2727.5,11.66636113]
[1748513544147,1.5058,2728.3,2727.9,3.66573495]
[1748513544570,5.17109081,2728.3,2727.8,11.66588864]
[1748513544946,1.5058,2728.3,2727.5,27.090825]
[1748513545149,1.6508,2728.8,2728.0,16.162536]
[1748513545481,1.6508,2728.8,2728.3,8.0]
[1748513545776,1.6508,2728.8,2728.5,3.6649031]
[1748513546470,1.6508,2728.8,2728.4,10.0]
[1748513546643,1.6508,2728.8,2728.4,3.66508009]
[1748513546973,1.6508,2728.8,2728.4,10.0]
[1748513547382,1.6508,2728.8,2728.4,13.66511889]
[1748513547681,1.6508,2728.8,2728.4,3.66511889]
[1748513547980,1.6508,2728.8,2728.3,3.832354]
[1748513548174,1.6508,2728.8,2728.4,11.54977584]
[1748513548335,0.05,2728.9,2728.4,6.44215613]
[1748513548534,0.05,2728.9,2728.4,5.21485613]
[1748513548828,3.71456314,2728.9,2728.3,3.66523361]
[1748513548995,3.71456314,2728.9,2728.4,10.0]
[1748513549141,3.71456314,2728.9,2728.4,13.66513997]
[1748513549474,1.5374,2728.7,2728.2,18.0]
[1748513549662,3.66498665,2728.6,2728.1,8.0]
[1748513549867,3.66502674,2728.5,2728.1,11.843]
[1748513550244,5.20216057,2728.7,2728.1,11.843]
[1748513550245,1.5374,2728.7,2728.1,11.843]
[1748513550449,3.66489737,2728.6,2728.1,3.107115]
[1748513550645,3.66502756,2728.5,2728.0,11.66557113]
[1748513550978,1.5374,2728.3,2728.0,8.0]
[1748513551179,1.5374,2728.3,2727.6,2.309693]
[1748513551381,3.66549896,2728.2,2727.6,3.842]
[1748513551542,3.66549896,2728.2,2727.7,10.0]
[1748513551744,3.66549896,2728.2,2727.8,8.0]
[1748513552066,3.66549896,2728.2,2727.7,3.66608183]
[1748513552483,5.20273707,2728.3,2727.8,8.0]
[1748513552645,1.5374,2728.3,2727.8,11.66588457]
[1748513552840,5.20275662,2728.3,2727.7,11.66604211]
[1748513553067,3.66543944,2728.2,2727.9,10.0]
[1748513553257,3.66543944,2728.2,2727.7,11.66604211]
[1748513553455,1.5374,2728.3,2727.7,11.66604211]
[1748513553456,5.2027164,2728.3,2727.9,10.0]
[1748513553650,5.2027164,2728.3,2727.7,11.66605398]
[1748513553853,5.2027164,2728.3,2727.9,10.0]
[1748513554500,1.5374,2728.3,2728.2,3.66542042]
[1748513554678,1.5374,2728.3,2727.7,8.0]
[1748513554679,1.033,2728.5,2728.1,3.66548715]
[1748513555768,1.033,2728.5,2728.1,13.66548715]
[1748513555970,1.033,2728.5,2728.1,8.0]
[1748513556181,4.69804979,2728.5,2728.1,8.0]
[1748513556382,4.69804979,2728.5,2728.0,11.66565735]
[1748513556686,4.69804979,2728.5,2728.0,8.0]
[1748513557651,1.6552,2728.4,2727.9,8.0]
[1748513557882,5.32046961,2728.4,2727.9,8.0]
[1748513558193,5.32046961,2728.4,2727.9,3.66581642]
[1748513558686,1.6552,2728.4,2728.1,8.0]
[1748513558872,1.6552,2728.4,2728.0,8.0]
[1748513559076,1.6552,2728.4,2727.8,11.66588555]
[1748513559272,3.66536943,2728.3,2727.8,8.0]
[1748513559579,3.66536943,2728.3,2727.8,11.66592824]
[1748513559886,1.6552,2728.4,2727.8,11.66592824]
[1748513559887,5.32040921,2728.4,2727.8,11.66592824]
[1748513560189,1.6552,2728.4,2728.0,8.0]
[1748513560488,1.6552,2728.4,2728.1,10.0]
[1748513561264,1.6552,2728.4,2728.0,2.508713]
[1748513561493,1.6552,2728.4,2728.1,10.0]
[1748513561694,1.6552,2728.4,2728.1,3.66555478]
[1748513561897,1.033,2728.5,2728.3,3.66528607]
[1748513562116,1.033,2728.5,2728.2,4.03190898]
[1748513562315,1.033,2728.5,2728.3,3.66521259]
[1748513562920,1.5764,2728.8,2728.4,3.66507164]
[1748513563317,1.5764,2728.8,2728.3,13.66524739]
[1748513563522,1.5764,2728.8,2728.4,9.40318029]
[1748513563691,0.05,2728.9,2728.5,5.29564814]
[1748513564021,0.05,2728.9,2728.5,3.66494814]
[1748513564407,0.05,2728.9,2728.4,5.0682756]
[1748513564606,5.23261661,2728.8,2728.4,8.0]
[1748513564813,1.568,2728.8,2728.3,8.0]
[1748513565020,5.2326942,2728.8,2728.3,8.0]
[1748513565223,3.66476118,2728.7,2728.3,8.0]
[1748513565521,1.5995,2728.6,2728.0,3.84]
[1748513565721,5.2644604,2728.6,2728.2,8.0]
[1748513566125,1.5995,2728.6,2728.2,8.0]
[1748513566286,1.5995,2728.6,2727.8,1.5201]
[1748513566287,3.6650174,2728.5,2727.8,5.18603856]
[1748513566487,1.5098,2728.2,2727.6,1.5605]
[1748513566788,1.5098,2728.2,2727.8,13.244366]
[1748513566997,1.5098,2728.2,2728.0,10.0]
[1748513567229,1.5098,2728.4,2728.0,3.66567494]
[1748513567530,1.5098,2728.6,2728.3,3.66525771]
[1748513568523,1.5098,2728.6,2728.3,10.0]
[1748513568726,1.5098,2728.6,2728.2,10.0]
[1748513568898,5.17470276,2728.6,2728.2,10.0]
[1748513569082,5.17470276,2728.6,2728.1,10.0]
[1748513569286,1.5098,2728.6,2728.2,1.46260028]
[1748513569724,5.17469701,2728.6,2728.2,1.46260028]
[1748513571913,5.17469701,2728.6,2728.2,10.0]
[1748513572425,3.66502884,2728.5,2728.2,10.0]
[1748513572653,1.5098,2728.6,2728.1,10.0]
[1748513572832,1.5098,2728.6,2727.6,1.663]
[1748513573017,1.5098,2728.6,2727.0,1.0]
[1748513573018,1.5098,2728.6,2727.8,8.0]
[1748513573019,1.5972,2728.5,2727.8,8.0]
[1748513573365,1.5972,2728.5,2727.9,1.46326645]
[1748513573366,1.5296,2728.0,2727.9,1.46326645]
[1748513573970,1.5296,2728.3,2727.6,1.46326645]
[1748513574117,5.19499673,2728.3,2727.8,8.0]
[1748513574320,1.6484,2728.8,2727.9,1.46326645]
[1748513574551,1.6484,2728.8,2728.1,3.6654835]
[1748513574552,5.3130299,2728.8,2728.1,3.6654835]
[1748513574751,3.66474878,2728.7,2728.2,1.46326645]
[1748513574953,3.66474878,2728.7,2728.2,5.12863379]
[1748513575154,3.66474878,2728.7,2728.2,3.66536734]
[1748513575465,3.66474878,2728.7,2728.3,1.46339497]
[1748513575674,5.31305568,2728.8,2728.3,1.46339497]
[1748513576169,5.31305568,2728.8,2728.2,12.4671232]
[1748513576348,5.31305568,2728.8,2728.3,5.12859202]
[1748513576575,5.31305568,2728.8,2728.3,1.2467303]
[1748513576775,3.66477352,2728.7,2728.2,10.0]
[1748513576975,3.66477352,2728.7,2728.3,1.46337725]
[1748513577149,3.66477352,2728.7,2728.2,3.6653742]
[1748513577349,3.66477352,2728.7,2728.3,1.46350237]
[1748513577780,1.6484,2728.8,2728.3,1.46350237]
[1748513577781,5.31306879,2728.8,2728.3,1.46350237]
[1748513578484,3.66481947,2728.7,2728.3,1.46350237]
[1748513578695,3.66488433,2728.6,2728.1,3.66548473]
[1748513578896,3.66488433,2728.6,2728.2,11.46363602]
[1748513579060,3.66488433,2728.6,2728.3,1.46363602]
[1748513579259,3.66488433,2728.6,2728.1,13.66548473]
[1748513579473,3.66488433,2728.6,2728.2,1.46365378]
[1748513579865,1.6484,2728.8,2728.2,1.46365378]
[1748513580064,1.5053,2728.3,2728.2,1.46365378]
[1748513580395,3.66553107,2728.2,2727.6,1.5303]
[1748513580550,3.66553107,2728.2,2727.8,10.0]
[1748513580751,3.66560153,2728.1,2727.9,1.46405432]
[1748513580948,3.66560153,2728.1,2728.0,1.46405432]
[1748513581174,3.66560153,2728.1,2727.5,8.00309512]
[1748513581389,3.66560153,2728.1,2727.6,10.7814022]
[1748513581574,3.66560153,2728.1,2727.7,9.46429417]
[1748513581778,3.66560153,2728.1,2727.8,1.46429417]
[1748513582093,3.66565088,2728.1,2727.8,1.46429417]
[1748513582452,3.66548178,2728.2,2727.8,1.46429417]
[1748513583372,0.27904536,2728.3,2727.8,1.46429417]
[1748513583951,3.66544064,2728.2,2727.8,1.46429417]
[1748513584158,3.66544064,2728.2,2727.9,1.46390415]
[1748513584458,3.66544064,2728.2,2727.7,11.66608863]
[1748513584660,3.66544064,2728.2,2727.8,1.46386805]
[1748513585302,3.66559569,2728.1,2727.8,1.46386805]
[1748513585470,3.66547831,2728.2,2727.8,1.46386805]
[1748513585657,3.66580618,2728.0,2727.8,1.46386805]
[1748513585857,5.23680789,2728.1,2727.5,15.50427039]
[1748513586058,1.5712,2728.1,2727.8,10.0]
[1748513586274,1.5712,2728.1,2727.8,3.66594946]
[1748513586487,1.5712,2728.1,2727.7,3.66604198]
[1748513586690,1.5712,2728.1,2727.8,1.46378232]
[1748513587579,1.5712,2728.1,2727.7,6.58306514]
[1748513587781,1.5712,2728.1,2727.8,1.46351076]
[1748513588802,3.66582352,2727.9,2727.2,11.66671239]
[1748513589001,1.6428,2727.9,2727.5,3.66636113]
[1748513589242,1.6107,2728.1,2727.6,1.83028218]
[1748513589540,1.6107,2728.1,2727.7,5.12967104]
[1748513589703,1.6107,2728.1,2727.7,13.66602497]
[1748513590425,1.6107,2728.1,2727.8,5.12933874]
[1748513590603,1.6107,2728.1,2727.8,3.66595116]
[1748513590796,1.028,2728.3,2727.8,0.76987131]
[1748513591011,6.21866679,2728.3,2727.8,3.66588591]
[1748513591779,6.21866468,2728.3,2727.8,3.66588591]
[1748513591924,3.66543979,2728.2,2727.7,3.66601539]
[1748513592127,2.5533,2728.3,2727.8,5.12904443]
[1748513592324,1.5253,2728.3,2727.8,1.91618611]
[1748513592582,3.66489637,2728.6,2728.0,3.66556398]
[1748513592583,5.2517552,2728.5,2728.0,3.66556398]
[1748513592752,5.2517552,2728.5,2727.9,3.66577335]
[1748513593064,3.66515853,2728.4,2727.9,3.66577335]
[1748513593525,3.66515853,2728.4,2727.8,13.66589074]
[1748513593727,3.66530703,2728.3,2727.9,3.19636786]
[1748513593927,3.66541715,2728.3,2727.8,10.0]
[1748513594246,3.66541715,2728.3,2727.9,1.46326356]
[1748513594443,3.66541715,2728.3,2727.8,13.66594748]
[1748513594642,1.5276,2728.1,2727.7,7.50301938]
[1748513594849,1.5276,2728.1,2727.8,11.46349197]
[1748513595044,1.5276,2728.1,2727.9,1.46348365]
[1748513595279,5.19298032,2728.3,2727.7,14.165788]
[1748513595465,5.19298032,2728.3,2727.8,8.13307703]
[1748513595629,5.19298032,2728.3,2727.9,1.46357881]
[1748513596283,5.19298032,2728.3,2727.7,8.45041755]
[1748513596591,5.19298032,2728.3,2727.8,3.66593352]
[1748513596791,5.19294606,2728.3,2727.8,10.0]
[1748513597088,5.19294606,2728.3,2727.8,13.66590302]
[1748513597237,5.19294606,2728.3,2727.8,3.66590302]
[1748513597433,1.5276,2728.3,2727.9,3.66581644]
[1748513597671,1.5276,2728.3,2727.9,0.73318723]
[1748513597886,5.19289197,2728.3,2727.8,3.66588641]
[1748513598860,1.5276,2728.3,2727.9,3.66579121]
[1748513600078,1.0276,2728.3,2727.9,3.66579121]
[1748513602630,1.0276,2728.3,2727.8,11.66589917]
[1748513603143,1.6128,2728.7,2728.3,3.66515812]
[1748513603278,1.6628,2728.9,2728.3,1.34712051]
[1748513603477,3.66461579,2728.8,2728.3,3.66524833]
[1748513603787,1.6628,2728.9,2728.2,11.66537427]
[1748513603788,3.664773,2728.7,2728.2,11.66537427]
[1748513604023,3.66509106,2728.5,2728.2,8.0]
[1748513604180,1.6139,2728.4,2728.1,8.0]
[1748513605190,5.27911794,2728.4,2727.9,8.0]
[1748513605401,5.27911794,2728.4,2727.7,5.32219231]
[1748513605402,5.80702454,2728.4,2727.8,7.123975]
[1748513605696,5.27911275,2728.4,2727.9,13.66581905]
[1748513605894,5.27911275,2728.4,2728.0,10.0]
[1748513606645,3.66529563,2728.3,2727.9,10.0]
[1748513606815,5.27912094,2728.4,2727.9,10.0]
[1748513606974,5.27912094,2728.4,2727.8,7.50091287]
[1748513606975,5.27912094,2728.4,2728.0,10.0]
[1748513607180,3.66529926,2728.3,2728.0,10.0]
[1748513607394,5.27917435,2728.4,2727.9,10.0]
[1748513607838,3.66531964,2728.3,2727.9,10.0]
[1748513608001,5.27909565,2728.4,2728.0,10.0]
[1748513608377,1.6139,2728.4,2728.0,10.0]
[1748513608787,5.27910571,2728.4,2728.0,10.0]
[1748513609333,5.27916734,2728.4,2727.8,7.50091031]
[1748513609678,5.27916734,2728.4,2728.0,10.0]
[1748513610017,1.6139,2728.4,2727.8,7.50091031]
[1748513610220,5.27910601,2728.4,2727.9,3.66581863]
[1748513610623,1.6139,2728.4,2727.9,3.66581863]
[1748513611225,5.27908743,2728.4,2728.0,1.46409223]
[1748513611992,6.17348801,2728.4,2727.8,7.50089214]
[1748513612198,3.66536432,2728.3,2727.9,1.46415103]
[1748513612531,3.66537664,2728.3,2727.9,1.46415103]
[1748513613810,3.66546508,2728.2,2727.9,1.46415103]
[1748513614180,2.50830058,2728.4,2727.5,3.66633665]
[1748513614181,1.5582,2727.8,2727.5,13.236903]
[1748513614294,1.5582,2727.8,2727.4,3.66640796]